bitfinex-derivatives/quotes_BTCF0:USTF0_20241116
["timestamp","ask_amount","ask_price","bid_price","bid_amount"]
[1731718152919,0.13145442,91174.0,91165.0,0.3608]
[1731718153423,0.0882,91180.0,91165.0,0.3608]
[1731718153424,0.13145442,91173.0,91165.0,0.3608]
[1731718154228,0.13145442,91174.0,91165.0,0.3608]
[1731718154428,0.13145442,91173.0,91165.0,0.3608]
[1731718154619,0.13145442,91174.0,91165.0,0.3608]
[1731718155317,0.13145442,91173.0,91165.0,0.3608]
[1731718155721,0.13145442,91171.0,91165.0,0.3608]
[1731718156128,0.13145442,91169.0,91165.0,0.3608]
[1731718156427,0.13145442,91170.0,91165.0,0.3608]
[1731718156628,0.13145442,91172.0,91165.0,0.3608]
[1731718156828,0.13145442,91171.0,91165.0,0.3608]
[1731718157423,0.13145442,91170.0,91165.0,0.3608]
[1731718158123,0.13145442,91169.0,91165.0,0.3608]
[1731718158325,0.13145442,91169.0,91168.0,0.02193846]
[1731718158830,0.16404322,91179.0,91168.0,0.02193846]
[1731718158831,0.13145442,91170.0,91168.0,0.02193846]
[1731718159028,0.13145442,91169.0,91168.0,0.02193846]
[1731718159336,0.16404322,91176.0,91168.0,0.02193846]
[1731718159639,0.0882,91181.0,91168.0,0.02193846]
[1731718161522,0.3608,91173.0,91168.0,0.02193846]
[1731718162818,0.3608,91182.0,91168.0,0.02193846]
[1731718162819,0.0882,91175.0,91169.0,0.26165257]
[1731718163028,0.0882,91175.0,91170.0,0.26165257]
[1731718163429,0.0882,91175.0,91168.0,0.02193846]
[1731718164636,0.0882,91175.0,91169.0,0.26225637]
[1731718165227,0.0882,91175.0,91168.0,0.28419483]
[1731718165631,0.0882,91175.0,91169.0,0.26225637]
[1731718165834,0.0882,91177.0,91169.0,0.26225637]
[1731718166533,0.0882,91177.0,91170.0,0.26225637]
[1731718166738,0.16397067,91175.0,91168.0,0.02193846]
[1731718166934,0.13122099,91169.0,91168.0,0.02193846]
[1731718167246,0.25217067,91177.0,91168.0,0.02193846]
[1731718167432,0.16397067,91176.0,91168.0,0.02193846]
[1731718167630,0.25217067,91177.0,91168.0,0.02193846]
[1731718168241,0.16397067,91176.0,91168.0,0.02193846]
[1731718168534,0.16397067,91175.0,91168.0,0.02193846]
[1731718169339,0.16397067,91174.0,91168.0,0.02193846]
[1731718170540,0.16397067,91173.0,91168.0,0.02193846]
[1731718171041,0.16397067,91174.0,91168.0,0.02193846]
[1731718171240,0.16397067,91173.0,91168.0,0.02193846]
[1731718171439,0.16397067,91172.0,91168.0,0.02193846]
[1731718171642,0.16397067,91171.0,91168.0,0.02193846]
[1731718171838,0.28496481,91177.0,91168.0,0.02193846]
[1731718171839,0.16397067,91172.0,91168.0,0.02193846]
[1731718172242,0.16397067,91169.0,91168.0,0.02193846]
[1731718172444,0.16397067,91170.0,91168.0,0.02193846]
[1731718174149,0.16397067,91171.0,91168.0,0.02193846]
[1731718174549,0.16397067,91172.0,91168.0,0.02193846]
[1731718174746,0.21964715,91186.0,91170.0,0.39338456]
[1731718175048,0.13144715,91185.0,91180.0,0.26276238]
[1731718175343,0.13144715,91185.0,91181.0,0.26276238]
[1731718176146,0.13144715,91184.0,91181.0,0.26276238]
[1731718176353,0.13144715,91185.0,91182.0,0.26276238]
[1731718177244,0.0882,91186.0,91173.0,0.3608]
[1731718177245,0.13144715,91184.0,91183.0,0.26276238]
[1731718178441,0.0882,91186.0,91178.0,0.32845298]
[1731718178442,0.13144715,91185.0,91178.0,0.32845298]
[1731718178638,0.13144715,91185.0,91184.0,0.26288502]
[1731718178855,0.0882,91186.0,91183.0,0.26288502]
[1731718179054,0.13150663,91184.0,91183.0,0.26288502]
[1731718179346,0.13150663,91185.0,91178.0,0.32845298]
[1731718179545,0.13150663,91185.0,91175.0,0.03612762]
[1731718179546,0.13150663,91185.0,91184.0,0.26288704]
[1731718181350,0.21970663,91186.0,91179.0,0.0328]
[1731718181554,0.13150663,91185.0,91184.0,0.26277607]
[1731718181854,0.16437786,91185.0,91179.0,0.0328]
[1731718182855,0.16437786,91184.0,91179.0,0.0328]
[1731718183449,0.16437786,91184.0,91176.0,0.26277607]
[1731718183751,0.13149702,91177.0,91175.0,0.26277607]
[1731718184151,0.13149768,91176.0,91173.0,0.3969642]
[1731718184459,0.13149768,91178.0,91173.0,0.3969642]
[1731718184653,0.13149768,91179.0,91173.0,0.3969642]
[1731718184851,0.13149768,91180.0,91173.0,0.3969642]
[1731718185053,0.13149768,91179.0,91173.0,0.3969642]
[1731718185277,0.13149768,91180.0,91173.0,0.3969642]
[1731718185654,0.13149768,91179.0,91173.0,0.3969642]
[1731718186350,0.13149768,91180.0,91173.0,0.3969642]
[1731718187147,0.13149768,91179.0,91173.0,0.3969642]
[1731718188155,0.08816,91184.0,91173.0,0.0361642]
[1731718188156,0.13149768,91178.0,91173.0,0.0361642]
[1731718188350,0.08816,91184.0,91169.0,0.36005298]
[1731718188351,0.49229768,91180.0,91176.0,0.26295413]
[1731718188551,0.49229768,91180.0,91174.0,0.26295413]
[1731718188552,0.13149768,91178.0,91174.0,0.26295413]
[1731718188746,0.3608,91180.0,91169.0,0.36005298]
[1731718188747,0.13149768,91177.0,91173.0,0.26295413]
[1731718189157,0.13149768,91176.0,91172.0,0.26295413]
[1731718189558,0.13149768,91176.0,91173.0,0.26295413]
[1731718189754,0.3608,91180.0,91169.0,0.06748834]
[1731718189755,0.05331486,91175.0,91169.0,0.06748834]
[1731718189957,0.19719311,91172.0,91169.0,0.06748834]
[1731718190265,0.05331486,91171.0,91169.0,0.06748834]
[1731718190455,0.05331486,91170.0,91169.0,0.06748834]
[1731718190657,0.25050797,91171.0,91169.0,0.06748834]
[1731718190859,0.3608,91180.0,91169.0,0.06748834]
[1731718190860,0.05331486,91170.0,91169.0,0.06748834]
[1731718191159,0.05331457,91170.0,91169.0,0.06748834]
[1731718191359,0.19719311,91172.0,91169.0,0.06748834]
[1731718191556,0.05331457,91171.0,91169.0,0.06748834]
[1731718191751,0.3608,91180.0,91169.0,0.06748834]
[1731718191752,0.05331457,91170.0,91169.0,0.06748834]
[1731718192361,0.25050768,91176.0,91169.0,0.06748834]
[1731718192560,0.05331457,91175.0,91169.0,0.06748834]
[1731718192761,0.05331457,91174.0,91169.0,0.06748834]
[1731718192958,0.05331457,91173.0,91169.0,0.06748834]
[1731718193164,0.05331457,91172.0,91169.0,0.06748834]
[1731718193355,0.05331457,91171.0,91169.0,0.06748834]
[1731718193555,0.05331457,91170.0,91169.0,0.06748834]
[1731718193750,0.19719311,91177.0,91169.0,0.06748834]
[1731718194262,0.25050768,91176.0,91169.0,0.06748834]
[1731718194455,0.05331457,91175.0,91169.0,0.06748834]
[1731718194657,0.05331457,91174.0,91169.0,0.06748834]
[1731718194853,0.05331457,91173.0,91169.0,0.06748834]
[1731718195059,0.05331457,91172.0,91169.0,0.06748834]
[1731718195266,0.05331457,91171.0,91169.0,0.06748834]
[1731718195563,0.05331457,91170.0,91169.0,0.06748834]
[1731718195866,0.25050764,91171.0,91169.0,0.06748834]
[1731718196061,0.05331453,91170.0,91169.0,0.06748834]
[1731718196459,0.25050764,91170.0,91169.0,0.06748834]
[1731718196764,0.3608,91180.0,91169.0,0.75441361]
[1731718196968,0.39673502,91180.0,91179.0,0.32883583]
[1731718197157,0.39673502,91180.0,91178.0,0.32883583]
[1731718197360,0.3608,91179.0,91177.0,0.32883583]
[1731718201368,0.08816,91184.0,91178.0,0.31363378]
[1731718201570,0.08816,91184.0,91181.0,0.32884366]
[1731718201760,0.08816,91184.0,91182.0,0.32884366]
[1731718202770,0.08816,91184.0,91180.0,0.32884366]
[1731718202965,0.08816,91184.0,91179.0,0.32884366]
[1731718203168,0.08816,91184.0,91180.0,0.32884366]
[1731718203564,0.08816,91184.0,91181.0,0.32884366]
[1731718204169,0.21963118,91184.0,91179.0,0.32884366]
[1731718204366,0.08816,91184.0,91181.0,0.32884366]
[1731718204670,0.08816,91184.0,91182.0,0.64207615]
[1731718204968,0.05331219,91183.0,91173.0,0.3608]
[1731718205171,0.19722962,91178.0,91173.0,0.3608]
[1731718205566,0.19722962,91176.0,91173.0,0.3608]
[1731718205768,0.25054181,91176.0,91173.0,0.3608]
[1731718205958,0.05331219,91175.0,91173.0,0.3608]
[1731718206162,0.05331219,91174.0,91169.0,0.26479504]
[1731718206365,0.19722962,91176.0,91173.0,0.3608]
[1731718207068,0.19722962,91176.0,91169.0,0.26479504]
[1731718207273,0.25054261,91175.0,91169.0,0.06748834]
[1731718207465,0.16433132,91170.0,91169.0,0.26479504]
[1731718207659,0.16433132,91171.0,91169.0,0.06748834]
[1731718207968,0.08816,91184.0,91169.0,0.26478821]
[1731718207969,0.16433132,91170.0,91169.0,0.26478821]
[1731718208172,0.16433132,91170.0,91169.0,0.06748834]
[1731718208173,0.05331308,91170.0,91169.0,0.06748834]
[1731718208470,0.16433529,91170.0,91169.0,0.26478821]
[1731718208970,0.16433529,91171.0,91169.0,0.06748834]
[1731718209170,0.16433529,91171.0,91170.0,0.19729857]
[1731718209469,0.19722962,91178.0,91169.0,0.06748834]
[1731718209470,0.16433529,91172.0,91169.0,0.06748834]
[1731718209673,0.19722962,91178.0,91171.0,0.3608]
[1731718209862,0.19722962,91178.0,91171.0,0.55809532]
[1731718210062,0.19722962,91179.0,91171.0,0.55809532]
[1731718210369,0.19722962,91178.0,91171.0,0.3608]
[1731718210570,0.05331246,91177.0,91171.0,0.55809532]
[1731718210766,0.16430691,91172.0,91171.0,0.3608]
[1731718211170,0.16430691,91172.0,91169.0,0.06748834]
[1731718211171,0.16429143,91172.0,91170.0,0.3608]
[1731718211670,0.16429143,91173.0,91170.0,0.3608]
[1731718211878,0.219593,91184.0,91171.0,0.31385627]
[1731718212070,0.08816,91184.0,91180.0,0.32882754]
[1731718212667,0.08816,91184.0,91170.0,0.3608]
[1731718212668,0.08816,91184.0,91179.0,0.32882754]
[1731718212871,0.08816,91184.0,91180.0,0.32882754]
[1731718213473,0.08816,91184.0,91179.0,0.32882754]
[1731718214369,0.08816,91184.0,91178.0,0.32882754]
[1731718214765,0.08816,91184.0,91180.0,0.32882754]
[1731718215170,0.08816,91184.0,91170.0,0.3608]
[1731718215171,0.08816,91184.0,91179.0,0.32882754]
[1731718215464,0.219593,91184.0,91178.0,0.32882754]
[1731718215776,0.219593,91184.0,91170.0,0.755403]
[1731718215777,0.08816,91184.0,91179.0,0.32882754]
[1731718216974,0.08816,91184.0,91180.0,0.32882754]
[1731718218381,0.08816,91184.0,91179.0,0.32882754]
[1731718219783,0.20377166,91183.0,91171.0,0.19730571]
[1731718219975,0.1642876,91172.0,91171.0,0.19730571]
[1731718220571,0.1642876,91172.0,91171.0,0.19730618]
[1731718221584,0.08816,91184.0,91170.0,0.55811214]
[1731718221585,0.19714512,91177.0,91170.0,0.55811214]
[1731718221775,0.16428853,91171.0,91170.0,0.55811214]
[1731718222270,0.16428853,91171.0,91170.0,0.5581138]
[1731718222667,0.19714512,91181.0,91171.0,0.32904]
[1731718222871,0.19714512,91189.0,91178.0,0.3608]
[1731718223070,0.08185233,91197.0,91183.0,0.19729164]
[1731718223071,0.19714512,91190.0,91183.0,0.19729164]
[1731718223378,0.25045307,91189.0,91181.0,0.19729164]
[1731718223575,0.19714512,91187.0,91178.0,0.55809164]
[1731718223781,0.25045307,91186.0,91178.0,0.55809164]
[1731718223975,0.05330795,91185.0,91178.0,0.55809164]
[1731718224182,0.05330795,91184.0,91178.0,0.55809164]
[1731718224372,0.05330795,91183.0,91178.0,0.55809164]
[1731718224574,0.05330795,91182.0,91178.0,0.55809164]
[1731718224773,0.19714512,91187.0,91178.0,0.55809164]
[1731718225574,0.05330985,91186.0,91178.0,0.55809164]
[1731718225776,0.19714512,91188.0,91178.0,0.55809164]
[1731718226074,0.3608,91193.0,91178.0,0.55809164]
[1731718226075,0.05330985,91189.0,91184.0,0.08185233]
[1731718226273,0.32794135,91221.0,91179.0,0.329]
[1731718226274,0.19714512,91194.0,91188.0,0.44265233]
[1731718226474,0.05330322,91193.0,91189.0,0.0306]
[1731718226694,0.29714512,91200.0,91191.0,0.19729164]
[1731718226889,0.1,91200.0,91198.0,0.32882754]
[1731718227386,0.1,91200.0,91196.0,0.68962754]
[1731718228270,0.1,91200.0,91196.0,0.3608]
[1731718228772,0.08185233,91198.0,91192.0,0.32882754]
[1731718228980,0.08185233,91198.0,91191.0,0.32882754]
[1731718229287,0.08185233,91198.0,91196.0,0.26270709]
[1731718229875,0.033,91199.0,91196.0,0.26270709]
[1731718230680,0.1,91200.0,91192.0,0.32882754]
[1731718230871,0.1,91200.0,91189.0,0.0306]
[1731718230872,0.1,91200.0,91199.0,0.26267623]
[1731718231181,0.1,91200.0,91199.0,0.26267615]
[1731718231380,0.1,91200.0,91196.0,0.3608]
[1731718231781,0.1,91200.0,91196.0,0.68962754]
[1731718232287,0.1,91200.0,91197.0,0.32882754]
[1731718233285,0.1,91200.0,91196.0,0.68962754]
[1731718233589,0.1,91200.0,91197.0,0.64820389]
[1731718233782,0.1,91200.0,91197.0,0.32882754]
[1731718233977,0.1,91200.0,91196.0,0.3608]
[1731718234385,0.1,91200.0,91199.0,0.08185233]
[1731718237288,0.1,91200.0,91199.0,0.34382718]
[1731718237590,0.1,91200.0,91199.0,0.41081233]
[1731718237980,0.1,91200.0,91199.0,0.73963987]
[1731718238186,0.1,91200.0,91199.0,0.73811969]
[1731718238385,0.1,91200.0,91199.0,0.41081233]
[1731718238588,0.1,91200.0,91199.0,0.73811969]
[1731718239286,0.1,91200.0,91199.0,0.41081233]
[1731718239477,0.1,91200.0,91199.0,0.08185233]
[1731718239677,0.1,91200.0,91199.0,0.41081233]
[1731718240583,0.18185233,91200.0,91197.0,0.32730736]
[1731718240784,0.1,91200.0,91196.0,0.71003969]
[1731718241090,0.1,91200.0,91198.0,0.34363922]
[1731718241392,0.1,91200.0,91198.0,0.08185233]
[1731718243792,0.1,91200.0,91196.0,0.38273233]
[1731718244682,0.18185233,91200.0,91192.0,0.03577373]
[1731718244888,0.05330274,91199.0,91190.0,0.3608]
[1731718245301,0.0311,91198.0,91190.0,0.3608]
[1731718245482,0.05330274,91197.0,91190.0,0.3608]
[1731718245681,0.08185233,91194.0,91190.0,0.3608]
[1731718245985,0.3608,91193.0,91183.0,0.03539613]
[1731718246187,0.0311,91198.0,91188.0,0.08185233]
[1731718246381,0.0311,91198.0,91195.0,0.08185233]
[1731718247094,0.13109385,91197.0,91195.0,0.08185233]
[1731718247294,0.13109385,91196.0,91195.0,0.08185233]
[1731718247695,0.13109385,91197.0,91195.0,0.08185233]
[1731718249398,0.13109385,91196.0,91195.0,0.08185233]
[1731718249694,0.13109385,91197.0,91195.0,0.08185233]
[1731718249900,0.13109385,91196.0,91195.0,0.08185233]
[1731718250096,0.0311,91198.0,91195.0,0.08185233]
[1731718251295,0.0311,91198.0,91196.0,0.32733658]
[1731718251797,0.0311,91198.0,91195.0,0.40918891]
[1731718252093,0.0311,91198.0,91195.0,0.08185233]
[1731718252299,0.0311,91198.0,91197.0,0.32733658]
[1731718253988,0.0311,91198.0,91196.0,0.32733658]
[1731718254189,0.0311,91198.0,91197.0,0.64500828]
[1731718254596,0.0311,91198.0,91197.0,0.3176717]
[1731718254788,0.0311,91198.0,91194.0,0.2779614]
[1731718254789,0.44191233,91198.0,91194.0,0.2779614]
[1731718255006,0.44191233,91198.0,91189.0,0.14690874]
[1731718255007,0.16370466,91195.0,91189.0,0.14690874]
[1731718255192,0.3608,91190.0,91185.0,8.037e-05]
[1731718255394,0.08185233,91186.0,91185.0,8.037e-05]
[1731718258491,0.16981233,91186.0,91185.0,8.037e-05]
[1731718258696,0.20575075,91186.0,91185.0,8.037e-05]
[1731718258996,0.3608,91190.0,91185.0,8.037e-05]
[1731718265019,0.13109385,91186.0,91185.0,6.1e-06]
[1731718265996,0.13116812,91186.0,91185.0,6.1e-06]
[1731718266708,7.427e-05,91186.0,91185.0,6.1e-06]
[1731718269598,7.427e-05,91186.0,91185.0,0.08185843]
[1731718270798,7.427e-05,91186.0,91185.0,6.1e-06]
[1731718277502,0.32907427,91186.0,91185.0,6.1e-06]
[1731718278115,0.12385087,91186.0,91185.0,6.1e-06]
[1731718278308,0.13191849,91186.0,91185.0,6.1e-06]
[1731718278614,0.12385087,91186.0,91185.0,6.1e-06]
[1731718279341,0.12385087,91186.0,91171.0,0.3608]
[1731718279342,0.17716392,91186.0,91171.0,0.3608]
[1731718279545,0.13125461,91173.0,91171.0,0.3608]
[1731718279836,0.16406827,91179.0,91171.0,0.3608]
[1731718279837,0.13125461,91172.0,91171.0,0.3608]
[1731718280037,0.1312497,91172.0,91171.0,0.3608]
[1731718280238,0.16406827,91179.0,91171.0,0.3608]
[1731718280840,0.13126663,91174.0,91171.0,0.3608]
[1731718281527,0.13126663,91175.0,91171.0,0.3608]
[1731718282143,0.13126663,91174.0,91171.0,0.3608]
[1731718282849,0.13126663,91175.0,91171.0,0.3608]
[1731718283229,0.13126663,91173.0,91171.0,0.3608]
[1731718283651,0.13126663,91172.0,91171.0,0.3608]
[1731718283837,0.16406827,91175.0,91171.0,0.3608]
[1731718284039,7.427e-05,91186.0,91171.0,0.3608]
[1731718284455,0.3608,91179.0,91170.0,0.00010237]
[1731718285149,0.19709078,91176.0,91170.0,0.00010237]
[1731718285648,0.25040699,91176.0,91170.0,0.00010237]
[1731718286451,0.08792,91177.0,91170.0,0.00010237]
[1731718286452,0.16419772,91171.0,91170.0,0.00010237]
[1731718287147,0.08792,91177.0,91170.0,0.30506304]
[1731718287345,0.08792,91177.0,91173.0,0.32854854]
[1731718288347,0.08792,91177.0,91174.0,0.63348493]
[1731718288535,0.08792,91177.0,91175.0,0.63347595]
[1731718288735,0.12280562,91177.0,91175.0,0.32854854]
[1731718288930,0.12280562,91177.0,91174.0,0.32854854]
[1731718289334,0.12280562,91177.0,91173.0,0.32854854]
[1731718290362,0.12280562,91177.0,91171.0,0.32854854]
[1731718290546,0.12280562,91177.0,91170.0,0.00010237]
[1731718290746,0.3608,91171.0,91170.0,0.00010237]
[1731718291149,0.12280562,91177.0,91170.0,0.00010237]
[1731718292227,0.12280562,91177.0,91170.0,0.32865091]
[1731718292432,0.12280562,91177.0,91171.0,0.0309]
[1731718293622,0.08792,91177.0,91171.0,0.0309]
[1731718293830,7.427e-05,91186.0,91173.0,0.68934854]
[1731718294122,0.13123762,91177.0,91173.0,0.3608]
[1731718294323,0.08792,91185.0,91173.0,0.3608]
[1731718294324,0.13123762,91178.0,91173.0,0.3608]
[1731718296525,0.13123762,91179.0,91173.0,0.3608]
[1731718297333,0.16427199,91186.0,91173.0,0.3608]
[1731718297334,0.13123762,91180.0,91173.0,0.3608]
[1731718298130,0.13123762,91181.0,91176.0,0.12469111]
[1731718298433,0.13123762,91183.0,91176.0,0.48549111]
[1731718298633,0.13123762,91185.0,91176.0,0.48549111]
[1731718298825,0.13123762,91185.0,91184.0,0.3608]
[1731718302134,7.427e-05,91186.0,91184.0,0.3608]
[1731718302339,7.427e-05,91186.0,91185.0,0.0327]
[1731718317444,7.427e-05,91186.0,91185.0,0.00215546]
[1731718317744,7.427e-05,91186.0,91185.0,0.00014208]
[1731718319447,0.1967085,91186.0,91185.0,0.00014208]
[1731718319944,0.19671497,91186.0,91185.0,0.00014208]
[1731718320141,0.05338377,91186.0,91185.0,0.00014208]
[1731718320357,0.25002447,91186.0,91185.0,0.00014208]
[1731718320560,0.05338377,91186.0,91185.0,0.00014208]
[1731718320858,7.427e-05,91186.0,91185.0,0.00014208]
[1731718321568,0.03609269,91186.0,91185.0,0.00014208]
[1731718321756,0.8505838,91186.0,91164.0,0.26264727]
[1731718321962,0.19666022,91171.0,91160.0,0.00164514]
[1731718322162,0.14115,91171.0,91160.0,0.00164514]
[1731718322563,0.24386611,91171.0,91160.0,0.00164514]
[1731718322875,0.29717611,91171.0,91160.0,0.00164514]
[1731718323072,0.14115,91171.0,91160.0,0.00164514]
[1731718323258,0.14115,91171.0,91160.0,0.03651469]
[1731718324371,0.14115,91171.0,91166.0,0.32854854]
[1731718324372,0.08784,91171.0,91166.0,0.32854854]
[1731718324667,0.44864,91171.0,91168.0,0.26284574]
[1731718325165,0.44864,91171.0,91166.0,0.26284574]
[1731718325669,0.44864,91171.0,91167.0,0.26284574]
[1731718326268,0.44864,91171.0,91166.0,0.26284574]
[1731718326768,0.44864,91171.0,91167.0,0.26284574]
[1731718327064,0.44864,91171.0,91160.0,0.33019368]
[1731718327065,0.4486,91171.0,91166.0,0.26284574]
[1731718327282,0.39616582,91171.0,91168.0,0.26284574]
[1731718327468,0.39616582,91171.0,91169.0,0.0322]
[1731718327680,0.39616582,91171.0,91170.0,0.26294811]
[1731718328060,0.39616582,91171.0,91170.0,0.00010237]
[1731718329065,0.03536582,91171.0,91170.0,0.26294811]
[1731718329273,0.0878,91175.0,91170.0,0.00010237]
[1731718329465,0.0878,91175.0,91173.0,0.26255833]
[1731718330163,0.0878,91175.0,91171.0,0.26255833]
[1731718330567,0.0878,91175.0,91172.0,0.26255833]
[1731718331162,0.12294706,91175.0,91173.0,0.26255833]
[1731718331370,0.0878,91175.0,91172.0,0.26255833]
[1731718332071,0.0878,91175.0,91170.0,0.2626607]
[1731718332276,0.0878,91175.0,91171.0,0.26255833]
[1731718332461,0.0878,91175.0,91170.0,0.00010237]
[1731718333575,0.3608,91173.0,91170.0,0.00010237]
[1731718333871,0.1310569,91172.0,91170.0,0.00010237]
[1731718334069,0.1310569,91171.0,91170.0,0.00010237]
[1731718334764,0.1310569,91172.0,91170.0,0.00010237]
[1731718335468,0.1310569,91171.0,91170.0,0.00010237]
[1731718335860,0.3608,91173.0,91170.0,0.00010237]
[1731718336174,0.4918569,91173.0,91170.0,0.00010237]
[1731718336370,0.1310569,91173.0,91170.0,0.00010237]
[1731718336575,0.12261733,91175.0,91170.0,0.00010237]
[1731718336576,0.1310569,91174.0,91170.0,0.00010237]
[1731718336967,0.0878,91173.0,91170.0,0.00010237]
[1731718338186,0.0810569,91179.0,91172.0,0.48549111]
[1731718338378,7.427e-05,91186.0,91172.0,0.48549111]
[1731718338379,0.08113117,91186.0,91178.0,0.48549111]
[1731718338568,7.427e-05,91186.0,91180.0,0.3608]
[1731718338968,7.427e-05,91186.0,91180.0,0.62335833]
[1731718339371,7.427e-05,91186.0,91184.0,0.39434675]
[1731718339669,7.427e-05,91186.0,91185.0,0.30497497]
[1731718340270,7.427e-05,91186.0,91185.0,0.69932172]
[1731718342179,7.427e-05,91186.0,91185.0,0.30497497]
[1731718345172,7.427e-05,91186.0,91185.0,0.3395342]
[1731718347586,7.427e-05,91186.0,91185.0,0.03455923]
[1731718347882,7.427e-05,91186.0,91181.0,0.29468719]
[1731718349678,7.427e-05,91186.0,91181.0,0.0325]
[1731718349879,7.427e-05,91186.0,91181.0,0.29468719]
[1731718350187,7.427e-05,91186.0,91182.0,0.26218719]
[1731718350481,7.427e-05,91186.0,91182.0,0.28411895]
[1731718350885,7.427e-05,91186.0,91185.0,0.08182349]
[1731718358383,7.427e-05,91186.0,91185.0,0.80342349]
[1731718358794,7.427e-05,91186.0,91185.0,1.80342349]
[1731718362284,2.7e-07,91186.0,91185.0,1.88524698]
[1731718362489,2.7e-07,91186.0,91185.0,2.13115748]
[1731718362696,2.7e-07,91186.0,91185.0,2.43626346]
[1731718363190,2.7e-07,91186.0,91185.0,2.10852947]
[1731718363989,2.7e-07,91186.0,91185.0,2.35460431]
[1731718364187,2.7e-07,91186.0,91185.0,2.02670598]
[1731718366595,2.7e-07,91186.0,91185.0,1.0]
[1731718366889,0.03531717,91186.0,91185.0,1.0]
[1731718368092,0.36431717,91186.0,91185.0,1.0]
[1731718368297,0.03531717,91186.0,91185.0,1.0]
[1731718368793,1.02511717,91186.0,91185.0,0.36130488]
[1731718368981,1.02511717,91186.0,91185.0,0.18590488]
[1731718369185,1.07843512,91186.0,91185.0,0.02135917]
[1731718369386,0.77843512,91186.0,91185.0,0.02135917]
[1731718369679,0.77843512,91186.0,91170.0,0.00010237]
[1731718369680,1.54476877,91186.0,91170.0,0.00010237]
[1731718369884,0.55711026,91173.0,91170.0,0.00010237]
[1731718370091,0.14107795,91172.0,91170.0,0.00010237]
[1731718370289,0.05331795,91171.0,91170.0,0.00010237]
[1731718370496,0.16346017,91171.0,91170.0,0.08192586]
[1731718370685,0.08776,91181.0,91170.0,0.08192586]
[1731718370686,0.16346017,91174.0,91170.0,0.08192586]
[1731718370881,0.16346017,91176.0,91170.0,0.08192586]
[1731718371089,0.16346017,91180.0,91170.0,0.08192586]
[1731718371286,0.25122017,91181.0,91170.0,0.08192586]
[1731718371686,0.08776,91181.0,91176.0,0.44262349]
[1731718371981,0.08776,91181.0,91177.0,0.0312]
[1731718372401,0.08776,91181.0,91178.0,0.0311]
[1731718373995,0.08776,91181.0,91176.0,0.3608]
[1731718373996,0.25122017,91181.0,91176.0,0.3608]
[1731718374185,0.0533141,91180.0,91170.0,0.00010237]
[1731718374386,0.52404403,91176.0,91170.0,0.00010237]
[1731718374588,0.16324403,91174.0,91170.0,0.00010237]
[1731718374790,0.16324403,91173.0,91170.0,0.00010237]
[1731718375192,0.16324403,91175.0,91170.0,0.00010237]
[1731718375690,0.16324403,91176.0,91170.0,0.00010237]
[1731718376292,0.16324403,91177.0,91170.0,0.00010237]
[1731718376592,0.16324403,91176.0,91170.0,0.00010237]
[1731718377289,0.16324403,91179.0,91170.0,0.00010237]
[1731718377591,0.08776,91181.0,91175.0,0.19679777]
[1731718377791,0.12471773,91191.0,91175.0,0.55759777]
[1731718377992,0.08776,91183.0,91177.0,0.19679777]
[1731718378195,0.08776,91183.0,91178.0,0.25999777]
[1731718378494,0.12471773,91191.0,91178.0,0.25999777]
[1731718378699,0.08776,91182.0,91178.0,0.25999777]
[1731718379001,0.12471773,91191.0,91178.0,0.25999777]
[1731718379300,0.08776,91185.0,91178.0,0.25999777]
[1731718379491,0.08776,91185.0,91180.0,0.19679777]
[1731718379801,0.08776,91185.0,91181.0,0.19679777]
[1731718380000,0.08776,91185.0,91182.0,0.19679777]
[1731718380301,0.08776,91185.0,91184.0,0.19679777]
[1731718380596,0.08776,91185.0,91181.0,0.26267668]
[1731718381499,0.08776,91185.0,91178.0,0.0632]
[1731718381500,0.08776,91185.0,91182.0,0.26267668]
[1731718381888,0.08776,91185.0,91183.0,0.26267668]
[1731718382496,0.08776,91185.0,91181.0,0.26267668]
[1731718382798,0.08776,91185.0,91183.0,0.26267668]
[1731718382999,0.08776,91185.0,91182.0,0.26267668]
[1731718383297,0.08776,91185.0,91181.0,0.26267668]
[1731718383494,0.08776,91185.0,91182.0,0.26267668]
[1731718383796,0.08776,91185.0,91181.0,0.26267668]
[1731718384396,0.08776,91185.0,91182.0,0.26267668]
[1731718384601,0.08776,91185.0,91178.0,0.0632]
[1731718390895,0.03497508,91189.0,91178.0,0.0632]
[1731718391096,0.08772,91187.0,91178.0,0.0632]
[1731718392604,0.08772,91187.0,91184.0,0.26267668]
[1731718393305,0.08772,91187.0,91185.0,0.26267668]
[1731718394305,0.08772,91187.0,91178.0,0.39153437]
[1731718394703,0.08772,91187.0,91184.0,0.26254378]
[1731718395594,0.08772,91187.0,91181.0,0.26254378]
[1731718395595,0.6898,91185.0,91181.0,0.26254378]
[1731718395804,0.08185287,91182.0,91180.0,0.19697676]
[1731718396001,0.08185287,91182.0,91181.0,0.19697676]
[1731718396307,0.08185287,91182.0,91178.0,0.26254378]
[1731718396499,0.08185287,91182.0,91177.0,0.26254378]
[1731718396700,0.08185287,91182.0,91180.0,0.19702729]
[1731718397607,0.3608,91181.0,91180.0,0.19702729]
[1731718398906,0.3608,91181.0,91176.0,0.26254378]
[1731718399300,0.3608,91181.0,91177.0,0.26254378]
[1731718400199,0.3608,91181.0,91178.0,0.26254378]
[1731718400605,0.3608,91181.0,91176.0,0.26254378]
[1731718401111,0.3608,91181.0,91170.0,0.32843674]
[1731718401112,0.3608,91181.0,91177.0,0.26254378]
[1731718401605,0.3608,91181.0,91178.0,0.26254378]
[1731718401909,0.3608,91181.0,91178.0,1.26254378]
[1731718402896,0.3608,91181.0,91178.0,1.0]
[1731718403102,0.3608,91181.0,91178.0,1.26254378]
[1731718403301,0.3608,91181.0,91178.0,1.0]
[1731718405103,0.82071509,91181.0,91178.0,0.79185819]
[1731718405307,0.3608,91179.0,91178.0,0.79185819]
[1731718405703,0.85308403,91179.0,91178.0,0.79185819]
[1731718406505,0.68984,91179.0,91178.0,0.79185819]
[1731718406812,0.85308403,91179.0,91178.0,0.79185819]
[1731718407008,0.74316505,91179.0,91178.0,0.79185819]
[1731718407507,0.68984,91179.0,91178.0,0.79185819]
[1731718407710,1.16597441,91179.0,91178.0,0.33107599]
[1731718408009,1.64690925,91179.0,91178.0,0.24330681]
[1731718408402,1.68151733,91179.0,91178.0,0.24330681]
[1731718408607,1.41872962,91179.0,91178.0,0.24330681]
[1731718408922,1.23554644,91179.0,91178.0,0.18328681]
[1731718409617,0.32904,91178.0,91134.0,0.26254378]
[1731718409911,0.3608,91154.0,91146.0,0.0051]
[1731718410105,0.3608,91154.0,91142.0,0.08185287]
[1731718410106,0.16362536,91148.0,91142.0,0.08185287]
[1731718410306,0.16362536,91151.0,91142.0,0.08185287]
[1731718410604,0.08776,91153.0,91142.0,0.08185287]